[Event "Titled Tuesday Blitz April 05 Early 2022"]
[White "Biletskiy, Danylo"]
[Black "Namitbir Singh Walia"]
[WhiteFideId "14155419"]
[BlackFideId "35071068"]
[WhiteElo "2087"]
[BlackElo "1565"]
[Result "0-1"]
[Round "06"]
[TimeControl "180+1"]
[Date "2022.04.05"]
[WhiteClock "0:01:31"]
[BlackClock "0:00:14"]

1. e4 {[%clk 0:03:00]}  c5 {[%clk 0:02:59]} 2. Nf3 {[%clk 0:03:00]}  Nc6 {[%clk 0:03:00]} 3. Bb5 {[%clk 0:03:00]}  g6 {[%clk 0:02:59]} 4. O-O {[%clk 0:03:00]}  Bg7 {[%clk 0:02:59]} 5. Re1 {[%clk 0:03:00]}  e6 {[%clk 0:02:57]} 6. c3 {[%clk 0:03:00]}  Nge7 {[%clk 0:02:55]} 7. d4 {[%clk 0:03:00]}  cxd4 {[%clk 0:02:55]} 8. cxd4 {[%clk 0:03:01]}  d5 {[%clk 0:02:54]} 9. e5 {[%clk 0:03:00]}  O-O {[%clk 0:02:53]} 10. b3 {[%clk 0:03:00]}  Bd7 {[%clk 0:02:40]} 11. Ba3 {[%clk 0:02:59]}  Nxe5 {[%clk 0:02:31]} 12. Nxe5 {[%clk 0:02:50]}  Bxb5 {[%clk 0:02:30]} 13. Nc3 {[%clk 0:02:50]}  Bd7 {[%clk 0:02:24]} 14. Rc1 {[%clk 0:02:48]}  Rc8 {[%clk 0:02:10]} 15. Qd3 {[%clk 0:02:47]}  Re8 {[%clk 0:01:52]} 16. Nxd7 {[%clk 0:02:45]}  Qxd7 {[%clk 0:01:50]} 17. Na4 {[%clk 0:02:45]}  Nf5 {[%clk 0:01:41]} 18. Nc5 {[%clk 0:02:33]}  Qc6 {[%clk 0:01:39]} 19. Bb2 {[%clk 0:02:12]}  b6 {[%clk 0:01:22]} 20. Na4 {[%clk 0:02:11]}  Qd7 {[%clk 0:01:17]} 21. g3 {[%clk 0:02:10]}  Nd6 {[%clk 0:01:14]} 22. Nc3 {[%clk 0:02:06]}  Rc7 {[%clk 0:01:12]} 23. Ba3 {[%clk 0:02:04]}  Rec8 {[%clk 0:01:12]} 24. Bxd6 {[%clk 0:02:04]}  Qxd6 {[%clk 0:01:13]} 25. Nb5 {[%clk 0:02:05]}  Rxc1 {[%clk 0:01:08]} 26. Nxd6 {[%clk 0:02:05]}  Rxe1+ {[%clk 0:01:08]} 27. Kg2 {[%clk 0:02:05]}  Rf8 {[%clk 0:00:58]} 28. Qa6 {[%clk 0:02:04]}  Bxd4 {[%clk 0:00:54]} 29. Qxa7 {[%clk 0:02:04]}  Re2 {[%clk 0:00:51]} 30. Nb5 {[%clk 0:02:04]}  Rxf2+ {[%clk 0:00:45]} 31. Kh3 {[%clk 0:02:03]}  Bc5 {[%clk 0:00:42]} 32. a3 {[%clk 0:02:03]}  Ra2 {[%clk 0:00:38]} 33. b4 {[%clk 0:01:55]}  Bg1 {[%clk 0:00:32]} 34. Kg4 {[%clk 0:01:53]}  Rxh2 {[%clk 0:00:31]} 35. a4 {[%clk 0:01:44]}  h5+ {[%clk 0:00:24]} 36. Kg5 {[%clk 0:01:43]}  Be3+ {[%clk 0:00:21]} 37. Kf6 {[%clk 0:01:43]}  Rf2+ {[%clk 0:00:20]} 38. Ke7 {[%clk 0:01:43]}  Bg5+ {[%clk 0:00:17]} 39. Kd6 {[%clk 0:01:31]}  Rd8+ {[%clk 0:00:15]} 40. Ke5 {[%clk 0:01:31]}  Bf6# {[%clk 0:00:14]} 0-1


[Site "https://www.chess.com"]

[Event "Titled Tuesday Blitz April 05 Early 2022"]
[White "Brodowski, Piotr"]
[Black "Butti, Enrique"]
[WhiteFideId "1124480"]
[BlackFideId "3700470"]
[WhiteElo "2422"]
[BlackElo "2080"]
[Result "1-0"]
[Round "06"]
[TimeControl "180+1"]
[Date "2022.04.05"]
[WhiteClock "0:00:55"]
[BlackClock "0:00:09"]

1. e4 {[%clk 0:03:00]}  c5 {[%clk 0:02:54]} 2. Nf3 {[%clk 0:02:59]}  d6 {[%clk 0:02:52]} 3. Bb5+ {[%clk 0:02:54]}  Bd7 {[%clk 0:02:51]} 4. Bxd7+ {[%clk 0:02:51]}  Qxd7 {[%clk 0:02:48]} 5. O-O {[%clk 0:02:51]}  Nc6 {[%clk 0:02:46]} 6. Re1 {[%clk 0:02:50]}  e6 {[%clk 0:02:39]} 7. b3 {[%clk 0:02:27]}  Nf6 {[%clk 0:02:35]} 8. Bb2 {[%clk 0:02:28]}  Be7 {[%clk 0:02:30]} 9. d4 {[%clk 0:02:27]}  cxd4 {[%clk 0:02:29]} 10. Nxd4 {[%clk 0:02:22]}  O-O {[%clk 0:02:24]} 11. c4 {[%clk 0:02:22]}  a6 {[%clk 0:02:21]} 12. Nc3 {[%clk 0:02:20]}  Nxd4 {[%clk 0:02:04]} 13. Qxd4 {[%clk 0:02:19]}  b5 {[%clk 0:02:03]} 14. Rad1 {[%clk 0:02:16]}  bxc4 {[%clk 0:01:50]} 15. Qxc4 {[%clk 0:02:16]}  Rfc8 {[%clk 0:01:45]} 16. Qe2 {[%clk 0:02:15]}  Qb7 {[%clk 0:01:41]} 17. h3 {[%clk 0:02:12]}  Nd7 {[%clk 0:01:33]} 18. Na4 {[%clk 0:02:07]}  Nb6 {[%clk 0:01:30]} 19. Qg4 {[%clk 0:01:59]}  e5 {[%clk 0:01:29]} 20. Nxb6 {[%clk 0:01:39]}  Qxb6 {[%clk 0:01:28]} 21. Rc1 {[%clk 0:01:40]}  Qb7 {[%clk 0:01:23]} 22. Ba3 {[%clk 0:01:34]}  h6 {[%clk 0:01:15]} 23. Red1 {[%clk 0:01:31]}  Rxc1 {[%clk 0:00:55]} 24. Rxc1 {[%clk 0:01:31]}  a5 {[%clk 0:00:55]} 25. Qf3 {[%clk 0:01:06]}  a4 {[%clk 0:00:49]} 26. b4 {[%clk 0:01:06]}  Rc8 {[%clk 0:00:41]} 27. Rxc8+ {[%clk 0:01:04]}  Qxc8 {[%clk 0:00:41]} 28. Qd3 {[%clk 0:01:04]}  Qb7 {[%clk 0:00:36]} 29. b5 {[%clk 0:01:01]}  Qb6 {[%clk 0:00:33]} 30. Bc1 {[%clk 0:00:56]}  Bd8 {[%clk 0:00:17]} 31. Be3 {[%clk 0:00:56]}  Qb8 {[%clk 0:00:16]} 32. Qc4 {[%clk 0:00:54]}  Bb6 {[%clk 0:00:15]} 33. Qxa4 {[%clk 0:00:54]}  Bxe3 {[%clk 0:00:10]} 34. fxe3 {[%clk 0:00:54]}  Qb6 {[%clk 0:00:09]} 35. Qb3 {[%clk 0:00:55]} 1-0


[Site "https://www.chess.com"]

[Event "Titled Tuesday Blitz April 05 Early 2022"]
[White "Buscar, Michael"]
[Black "Weetik, Vjacheslav"]
[WhiteFideId "2603616"]
[BlackFideId "4153472"]
[WhiteElo "2010"]
[BlackElo "2469"]
[Result "0-1"]
[Round "06"]
[TimeControl "180+1"]
[Date "2022.04.05"]
[WhiteClock "0:01:35"]
[BlackClock "0:01:39"]

1. Nf3 {[%clk 0:02:55]}  Nf6 {[%clk 0:02:57]} 2. g3 {[%clk 0:02:54]}  d5 {[%clk 0:02:56]} 3. Bg2 {[%clk 0:02:55]}  Bf5 {[%clk 0:02:55]} 4. O-O {[%clk 0:02:55]}  e6 {[%clk 0:02:55]} 5. d4 {[%clk 0:02:53]}  Nbd7 {[%clk 0:02:49]} 6. c4 {[%clk 0:02:53]}  c6 {[%clk 0:02:48]} 7. Nbd2 {[%clk 0:02:48]}  Be7 {[%clk 0:02:45]} 8. b3 {[%clk 0:02:48]}  Ne4 {[%clk 0:02:44]} 9. Bb2 {[%clk 0:02:47]}  O-O {[%clk 0:02:43]} 10. Ne5 {[%clk 0:02:47]}  Nxe5 {[%clk 0:02:40]} 11. dxe5 {[%clk 0:02:47]}  Nxd2 {[%clk 0:02:36]} 12. Qxd2 {[%clk 0:02:47]}  dxc4 {[%clk 0:02:35]} 13. Qxd8 {[%clk 0:02:27]}  Rfxd8 {[%clk 0:02:36]} 14. e4 {[%clk 0:02:28]}  Bg6 {[%clk 0:01:53]} 15. Rfd1 {[%clk 0:02:08]}  cxb3 {[%clk 0:01:47]} 16. axb3 {[%clk 0:02:06]}  a6 {[%clk 0:01:45]} 17. Bd4 {[%clk 0:01:52]}  Bh5 {[%clk 0:01:40]} 18. Rd2 {[%clk 0:01:35]}  Bb4 {[%clk 0:01:39]} 0-1


[Site "https://www.chess.com"]

[Event "Titled Tuesday Blitz April 05 Early 2022"]
[White "Fier, Alexandr"]
[Black "Pinheiro, Iung Alicio de O."]
[WhiteFideId "2107139"]
[BlackFideId "2104350"]
[WhiteElo "2571"]
[BlackElo "2523"]
[Result "1-0"]
[Round "06"]
[TimeControl "180+1"]
[Date "2022.04.05"]
[WhiteClock "0:00:49"]
[BlackClock "0:00:06"]

1. d4 {[%clk 0:03:00]}  Nf6 {[%clk 0:02:59]} 2. Bg5 {[%clk 0:03:01]}  Ne4 {[%clk 0:02:56]} 3. h4 {[%clk 0:03:01]}  h6 {[%clk 0:02:53]} 4. Bf4 {[%clk 0:03:00]}  d5 {[%clk 0:02:51]} 5. e3 {[%clk 0:03:00]}  Bf5 {[%clk 0:02:46]} 6. Bd3 {[%clk 0:03:00]}  e6 {[%clk 0:02:46]} 7. Ne2 {[%clk 0:02:54]}  Bd6 {[%clk 0:02:44]} 8. f3 {[%clk 0:02:46]}  Nf6 {[%clk 0:02:41]} 9. Bxf5 {[%clk 0:02:44]}  exf5 {[%clk 0:02:42]} 10. h5 {[%clk 0:02:44]}  O-O {[%clk 0:02:35]} 11. Qd3 {[%clk 0:02:42]}  Bxf4 {[%clk 0:02:32]} 12. Nxf4 {[%clk 0:02:41]}  Re8 {[%clk 0:02:33]} 13. Kf2 {[%clk 0:02:35]}  Qd7 {[%clk 0:02:30]} 14. b3 {[%clk 0:02:32]}  Na6 {[%clk 0:02:13]} 15. c4 {[%clk 0:02:30]}  dxc4 {[%clk 0:02:10]} 16. bxc4 {[%clk 0:02:30]}  c5 {[%clk 0:02:10]} 17. d5 {[%clk 0:02:29]}  Nb4 {[%clk 0:02:07]} 18. Qd2 {[%clk 0:02:27]}  Rad8 {[%clk 0:02:06]} 19. Nc3 {[%clk 0:02:27]}  Nc6 {[%clk 0:02:02]} 20. Rab1 {[%clk 0:02:22]}  Ne5 {[%clk 0:01:58]} 21. Qe2 {[%clk 0:02:22]}  b6 {[%clk 0:01:58]} 22. a4 {[%clk 0:02:21]}  Neg4+ {[%clk 0:01:56]} 23. fxg4 {[%clk 0:02:11]}  Nxg4+ {[%clk 0:01:57]} 24. Kg1 {[%clk 0:02:04]}  Rxe3 {[%clk 0:01:54]} 25. Qd2 {[%clk 0:02:05]}  Qd6 {[%clk 0:01:42]} 26. Rf1 {[%clk 0:02:04]}  Rde8 {[%clk 0:01:41]} 27. Rh3 {[%clk 0:02:02]}  Qe5 {[%clk 0:01:33]} 28. Nd1 {[%clk 0:01:54]}  Re4 {[%clk 0:01:27]} 29. Rd3 {[%clk 0:01:34]}  Rxc4 {[%clk 0:01:20]} 30. d6 {[%clk 0:01:34]}  Rd4 {[%clk 0:01:13]} 31. Rxd4 {[%clk 0:01:33]}  cxd4 {[%clk 0:01:13]} 32. d7 {[%clk 0:01:32]}  Rd8 {[%clk 0:01:12]} 33. Re1 {[%clk 0:01:32]}  Ne3 {[%clk 0:00:50]} 34. Nxe3 {[%clk 0:01:27]}  Qxf4 {[%clk 0:00:36]} 35. Nc4 {[%clk 0:01:20]}  Qxd2 {[%clk 0:00:33]} 36. Re8+ {[%clk 0:01:20]}  Kh7 {[%clk 0:00:33]} 37. Nxd2 {[%clk 0:01:20]}  Rxd7 {[%clk 0:00:33]} 38. Kf2 {[%clk 0:01:19]}  g6 {[%clk 0:00:29]} 39. hxg6+ {[%clk 0:01:19]}  fxg6 {[%clk 0:00:29]} 40. Ke2 {[%clk 0:01:19]}  d3+ {[%clk 0:00:28]} 41. Ke3 {[%clk 0:01:19]}  g5 {[%clk 0:00:28]} 42. Nf3 {[%clk 0:01:18]}  Kg7 {[%clk 0:00:27]} 43. Kd2 {[%clk 0:01:18]}  f4 {[%clk 0:00:24]} 44. Ne5 {[%clk 0:01:18]}  Rd4 {[%clk 0:00:24]} 45. a5 {[%clk 0:01:01]}  bxa5 {[%clk 0:00:24]} 46. Re6 {[%clk 0:01:01]}  Ra4 {[%clk 0:00:22]} 47. Rg6+ {[%clk 0:01:00]}  Kh7 {[%clk 0:00:22]} 48. Ra6 {[%clk 0:01:01]}  Ra2+ {[%clk 0:00:22]} 49. Kxd3 {[%clk 0:01:02]}  Rxg2 {[%clk 0:00:22]} 50. Ke4 {[%clk 0:01:02]}  Rb2 {[%clk 0:00:14]} 51. Kf5 {[%clk 0:01:02]}  Rb6 {[%clk 0:00:14]} 52. Rxa7+ {[%clk 0:01:02]}  Kg8 {[%clk 0:00:14]} 53. Ng4 {[%clk 0:01:02]}  f3 {[%clk 0:00:10]} 54. Ke4 {[%clk 0:00:58]}  Rb4+ {[%clk 0:00:08]} 55. Kxf3 {[%clk 0:00:58]}  Rf4+ {[%clk 0:00:09]} 56. Kg3 {[%clk 0:00:59]}  h5 {[%clk 0:00:09]} 57. Ne5 {[%clk 0:00:57]}  h4+ {[%clk 0:00:09]} 58. Kh3 {[%clk 0:00:58]}  a4 {[%clk 0:00:10]} 59. Ng6 {[%clk 0:00:54]}  Rb4 {[%clk 0:00:09]} 60. Ne7+ {[%clk 0:00:52]}  Kf8 {[%clk 0:00:09]} 61. Nd5 {[%clk 0:00:52]}  Rd4 {[%clk 0:00:08]} 62. Nf6 {[%clk 0:00:53]}  Rb4 {[%clk 0:00:08]} 63. Nh7+ {[%clk 0:00:51]}  Ke8 {[%clk 0:00:07]} 64. Nxg5 {[%clk 0:00:52]}  Kd8 {[%clk 0:00:07]} 65. Ne6+ {[%clk 0:00:52]}  Kc8 {[%clk 0:00:07]} 66. Nc5 {[%clk 0:00:52]}  Kb8 {[%clk 0:00:07]} 67. Re7 {[%clk 0:00:52]}  Kc8 {[%clk 0:00:04]} 68. Re8+ {[%clk 0:00:49]}  Kc7 {[%clk 0:00:04]} 69. Na6+ {[%clk 0:00:50]}  Kd7 {[%clk 0:00:05]} 70. Ra8 {[%clk 0:00:50]}  Rb3+ {[%clk 0:00:05]} 71. Kxh4 {[%clk 0:00:50]}  a3 {[%clk 0:00:06]} 72. Nc5+ {[%clk 0:00:49]} 1-0


[Site "https://www.chess.com"]

[Event "Titled Tuesday Blitz April 05 Early 2022"]
[White "Garv Gaur"]
[Black "Simonovic, Miroslav"]
[WhiteFideId "45030839"]
[BlackFideId "919152"]
[WhiteElo "1950"]
[BlackElo "2043"]
[Result "1-0"]
[Round "06"]
[TimeControl "180+1"]
[Date "2022.04.05"]
[WhiteClock "0:01:04"]
[BlackClock "0:00:19"]

1. d4 {[%clk 0:03:00]}  Nf6 {[%clk 0:02:59]} 2. Nf3 {[%clk 0:03:01]}  c5 {[%clk 0:02:59]} 3. c4 {[%clk 0:03:02]}  b6 {[%clk 0:02:59]} 4. d5 {[%clk 0:03:02]}  d6 {[%clk 0:02:57]} 5. Nc3 {[%clk 0:03:02]}  Nbd7 {[%clk 0:02:58]} 6. e4 {[%clk 0:03:02]}  g6 {[%clk 0:02:58]} 7. Bd3 {[%clk 0:02:59]}  Bg7 {[%clk 0:02:59]} 8. O-O {[%clk 0:02:59]}  O-O {[%clk 0:02:59]} 9. Re1 {[%clk 0:02:59]}  Ng4 {[%clk 0:02:58]} 10. Bf4 {[%clk 0:02:55]}  Nge5 {[%clk 0:02:57]} 11. Bf1 {[%clk 0:02:55]}  a6 {[%clk 0:02:44]} 12. a4 {[%clk 0:02:51]}  Rb8 {[%clk 0:02:44]} 13. Bg3 {[%clk 0:02:45]}  Nxf3+ {[%clk 0:02:37]} 14. Qxf3 {[%clk 0:02:44]}  Ne5 {[%clk 0:02:29]} 15. Qe2 {[%clk 0:02:44]}  Bg4 {[%clk 0:02:19]} 16. f3 {[%clk 0:02:40]}  Bd7 {[%clk 0:02:19]} 17. f4 {[%clk 0:02:37]}  Ng4 {[%clk 0:02:18]} 18. h3 {[%clk 0:02:34]}  Nh6 {[%clk 0:02:18]} 19. Bf2 {[%clk 0:02:30]}  b5 {[%clk 0:02:14]} 20. axb5 {[%clk 0:02:28]}  axb5 {[%clk 0:02:15]} 21. Nxb5 {[%clk 0:02:25]}  Bxb5 {[%clk 0:02:14]} 22. cxb5 {[%clk 0:02:26]}  Ra8 {[%clk 0:02:04]} 23. Qc2 {[%clk 0:02:21]}  Ra5 {[%clk 0:01:58]} 24. Qd2 {[%clk 0:02:13]}  Ra8 {[%clk 0:01:37]} 25. Ra6 {[%clk 0:02:08]}  Rxa6 {[%clk 0:01:33]} 26. bxa6 {[%clk 0:02:09]}  Qb6 {[%clk 0:01:33]} 27. Ra1 {[%clk 0:02:03]}  Ra8 {[%clk 0:01:26]} 28. Ra2 {[%clk 0:01:57]}  f5 {[%clk 0:01:19]} 29. e5 {[%clk 0:01:53]}  dxe5 {[%clk 0:01:17]} 30. fxe5 {[%clk 0:01:54]}  Nf7 {[%clk 0:01:14]} 31. d6 {[%clk 0:01:47]}  exd6 {[%clk 0:01:05]} 32. e6 {[%clk 0:01:46]}  Ne5 {[%clk 0:00:52]} 33. Qd5 {[%clk 0:01:44]}  Qc6 {[%clk 0:00:42]} 34. Qxc6 {[%clk 0:01:39]}  Nxc6 {[%clk 0:00:43]} 35. Bb5 {[%clk 0:01:36]}  Na7 {[%clk 0:00:34]} 36. Bc4 {[%clk 0:01:36]}  Kf8 {[%clk 0:00:32]} 37. b4 {[%clk 0:01:24]}  Bd4 {[%clk 0:00:30]} 38. Bxd4 {[%clk 0:01:22]}  cxd4 {[%clk 0:00:31]} 39. b5 {[%clk 0:01:23]}  Nc8 {[%clk 0:00:28]} 40. Bd5 {[%clk 0:01:20]}  Ra7 {[%clk 0:00:27]} 41. Bb7 {[%clk 0:01:19]}  Nb6 {[%clk 0:00:25]} 42. Rd2 {[%clk 0:01:15]}  Ke7 {[%clk 0:00:24]} 43. Rxd4 {[%clk 0:01:13]}  Kxe6 {[%clk 0:00:24]} 44. Rd1 {[%clk 0:01:13]}  Nd7 {[%clk 0:00:23]} 45. Bc8 {[%clk 0:01:11]}  Kf6 {[%clk 0:00:18]} 46. Bxd7 {[%clk 0:01:07]}  Rxd7 {[%clk 0:00:18]} 47. b6 {[%clk 0:01:06]}  d5 {[%clk 0:00:19]} 48. a7 {[%clk 0:01:04]} 1-0


[Site "https://www.chess.com"]

[Event "Titled Tuesday Blitz April 05 Early 2022"]
[White "Gatterer, Florian"]
[Black "Sellitti, Federico"]
[WhiteFideId "811688"]
[BlackFideId "821829"]
[WhiteElo "2218"]
[BlackElo "2551"]
[Result "0-1"]
[Round "06"]
[TimeControl "180+1"]
[Date "2022.04.05"]
[WhiteClock "0:00:15"]
[BlackClock "0:00:08"]

1. Nf3 {[%clk 0:03:00]}  Nf6 {[%clk 0:02:56]} 2. d4 {[%clk 0:02:55]}  d5 {[%clk 0:02:55]} 3. g3 {[%clk 0:02:56]}  g6 {[%clk 0:02:53]} 4. Bg2 {[%clk 0:02:56]}  Bg7 {[%clk 0:02:54]} 5. O-O {[%clk 0:02:57]}  O-O {[%clk 0:02:54]} 6. c4 {[%clk 0:02:57]}  c6 {[%clk 0:02:54]} 7. Qb3 {[%clk 0:02:54]}  dxc4 {[%clk 0:02:52]} 8. Qxc4 {[%clk 0:02:54]}  Nbd7 {[%clk 0:02:53]} 9. Nc3 {[%clk 0:02:53]}  Nb6 {[%clk 0:02:49]} 10. Qd3 {[%clk 0:02:53]}  Nfd5 {[%clk 0:02:42]} 11. e4 {[%clk 0:02:47]}  Nxc3 {[%clk 0:02:42]} 12. bxc3 {[%clk 0:02:47]}  e5 {[%clk 0:02:42]} 13. Be3 {[%clk 0:02:38]}  Be6 {[%clk 0:02:35]} 14. Nd2 {[%clk 0:02:33]}  Qd7 {[%clk 0:02:16]} 15. a4 {[%clk 0:02:22]}  Rad8 {[%clk 0:02:02]} 16. a5 {[%clk 0:02:21]}  Nc8 {[%clk 0:02:02]} 17. Nf3 {[%clk 0:01:39]}  f5 {[%clk 0:01:26]} 18. Bg5 {[%clk 0:01:03]}  Rde8 {[%clk 0:01:19]} 19. exf5 {[%clk 0:00:51]}  gxf5 {[%clk 0:01:16]} 20. Qc2 {[%clk 0:00:30]}  e4 {[%clk 0:01:11]} 21. Ne5 {[%clk 0:00:29]}  Bxe5 {[%clk 0:00:57]} 22. dxe5 {[%clk 0:00:30]}  Bc4 {[%clk 0:00:58]} 23. Rfd1 {[%clk 0:00:28]}  Bd3 {[%clk 0:00:58]} 24. Qb3+ {[%clk 0:00:28]}  Qf7 {[%clk 0:00:58]} 25. Qxf7+ {[%clk 0:00:23]}  Kxf7 {[%clk 0:00:59]} 26. Bf4 {[%clk 0:00:23]}  Ne7 {[%clk 0:00:50]} 27. Bf1 {[%clk 0:00:23]}  Rd8 {[%clk 0:00:40]} 28. Bxd3 {[%clk 0:00:22]}  exd3 {[%clk 0:00:30]} 29. Rab1 {[%clk 0:00:22]}  Rd7 {[%clk 0:00:27]} 30. c4 {[%clk 0:00:21]}  Ke6 {[%clk 0:00:23]} 31. Rb3 {[%clk 0:00:19]}  Rfd8 {[%clk 0:00:23]} 32. Rd2 {[%clk 0:00:19]}  Ng6 {[%clk 0:00:23]} 33. h3 {[%clk 0:00:14]}  Nxe5 {[%clk 0:00:17]} 34. Bxe5 {[%clk 0:00:14]}  Kxe5 {[%clk 0:00:18]} 35. Kg2 {[%clk 0:00:15]}  Rd4 {[%clk 0:00:15]} 36. Kf3 {[%clk 0:00:15]}  R8d7 {[%clk 0:00:14]} 37. Rc3 {[%clk 0:00:14]}  b6 {[%clk 0:00:13]} 38. axb6 {[%clk 0:00:14]}  axb6 {[%clk 0:00:13]} 39. h4 {[%clk 0:00:12]}  h5 {[%clk 0:00:12]} 40. Rb3 {[%clk 0:00:10]}  Rxc4 {[%clk 0:00:11]} 41. Rbxd3 {[%clk 0:00:10]}  Rxd3+ {[%clk 0:00:11]} 42. Rxd3 {[%clk 0:00:10]}  b5 {[%clk 0:00:11]} 43. Rd8 {[%clk 0:00:10]}  b4 {[%clk 0:00:11]} 44. Ke3 {[%clk 0:00:10]}  Rc3+ {[%clk 0:00:10]} 45. Kd2 {[%clk 0:00:10]}  c5 {[%clk 0:00:10]} 46. Ke2 {[%clk 0:00:10]}  Rc2+ {[%clk 0:00:09]} 47. Ke3 {[%clk 0:00:10]}  b3 {[%clk 0:00:09]} 48. f4+ {[%clk 0:00:10]}  Ke6 {[%clk 0:00:09]} 49. Rb8 {[%clk 0:00:11]}  c4 {[%clk 0:00:09]} 50. Kd4 {[%clk 0:00:11]}  b2 {[%clk 0:00:05]} 51. Rb6+ {[%clk 0:00:12]}  Kd7 {[%clk 0:00:05]} 52. Kd5 {[%clk 0:00:12]}  c3 {[%clk 0:00:05]} 53. Ke5 {[%clk 0:00:12]}  Rc1 {[%clk 0:00:04]} 54. Rb7+ {[%clk 0:00:13]}  Kc8 {[%clk 0:00:04]} 55. Rb4 {[%clk 0:00:13]}  b1=Q {[%clk 0:00:05]} 56. Rc4+ {[%clk 0:00:13]}  Kb7 {[%clk 0:00:05]} 57. Kf6 {[%clk 0:00:14]}  Qb3 {[%clk 0:00:04]} 58. Rc5 {[%clk 0:00:14]}  Qb6+ {[%clk 0:00:04]} 59. Kg5 {[%clk 0:00:14]}  Qxc5 {[%clk 0:00:05]} 60. Kxh5 {[%clk 0:00:14]}  Rd1 {[%clk 0:00:05]} 61. Kg5 {[%clk 0:00:14]}  Rd3 {[%clk 0:00:06]} 62. h5 {[%clk 0:00:15]}  Rxg3+ {[%clk 0:00:06]} 63. Kf6 {[%clk 0:00:15]}  Qd6+ {[%clk 0:00:06]} 64. Kf7 {[%clk 0:00:15]}  Re3 {[%clk 0:00:06]} 65. Kg8 {[%clk 0:00:15]}  Re7 {[%clk 0:00:07]} 66. h6 {[%clk 0:00:15]}  Qd8# {[%clk 0:00:08]} 0-1


[Site "https://www.chess.com"]

[Event "Titled Tuesday Blitz April 05 Early 2022"]
[White "Girinath, P.D.S."]
[Black "Hua, Lefong"]
[WhiteFideId "5000572"]
[BlackFideId "2602253"]
[WhiteElo "2369"]
[BlackElo "2586"]
[Result "0-1"]
[Round "06"]
[TimeControl "180+1"]
[Date "2022.04.05"]
[WhiteClock "0:00:06"]
[BlackClock "0:00:07"]

1. e4 {[%clk 0:02:56]}  c5 {[%clk 0:03:00]} 2. Nf3 {[%clk 0:02:56]}  g6 {[%clk 0:03:00]} 3. c3 {[%clk 0:02:55]}  Nc6 {[%clk 0:02:59]} 4. d4 {[%clk 0:02:54]}  d5 {[%clk 0:02:59]} 5. exd5 {[%clk 0:02:54]}  Qxd5 {[%clk 0:03:00]} 6. Be3 {[%clk 0:02:54]}  cxd4 {[%clk 0:02:51]} 7. cxd4 {[%clk 0:02:55]}  Nf6 {[%clk 0:02:46]} 8. Nc3 {[%clk 0:02:55]}  Qa5 {[%clk 0:02:46]} 9. d5 {[%clk 0:02:53]}  Nb8 {[%clk 0:02:45]} 10. Bb5+ {[%clk 0:02:33]}  Bd7 {[%clk 0:02:44]} 11. a4 {[%clk 0:02:23]}  Bg7 {[%clk 0:02:40]} 12. O-O {[%clk 0:02:10]}  O-O {[%clk 0:02:38]} 13. Ne5 {[%clk 0:02:08]}  Qd8 {[%clk 0:02:31]} 14. f4 {[%clk 0:01:59]}  a6 {[%clk 0:02:23]} 15. Be2 {[%clk 0:01:54]}  h5 {[%clk 0:02:15]} 16. h3 {[%clk 0:01:53]}  Bf5 {[%clk 0:02:11]} 17. Bf3 {[%clk 0:01:51]}  Ne8 {[%clk 0:01:35]} 18. a5 {[%clk 0:01:29]}  Nd6 {[%clk 0:01:32]} 19. Qb3 {[%clk 0:01:10]}  Bc8 {[%clk 0:01:07]} 20. Na4 {[%clk 0:00:47]}  Nd7 {[%clk 0:01:03]} 21. Nb6 {[%clk 0:00:37]}  Nxb6 {[%clk 0:01:00]} 22. Bxb6 {[%clk 0:00:37]}  Qe8 {[%clk 0:01:00]} 23. Rac1 {[%clk 0:00:36]}  Nb5 {[%clk 0:00:56]} 24. Rfd1 {[%clk 0:00:24]}  Bd7 {[%clk 0:00:49]} 25. Be2 {[%clk 0:00:13]}  Rc8 {[%clk 0:00:47]} 26. Kh2 {[%clk 0:00:10]}  h4 {[%clk 0:00:39]} 27. Bc4 {[%clk 0:00:09]}  Nd6 {[%clk 0:00:38]} 28. Qb4 {[%clk 0:00:07]}  Bf5 {[%clk 0:00:32]} 29. b3 {[%clk 0:00:07]}  Kh7 {[%clk 0:00:28]} 30. Bc5 {[%clk 0:00:05]}  Rb8 {[%clk 0:00:21]} 31. Nf3 {[%clk 0:00:03]}  Bf6 {[%clk 0:00:19]} 32. Ng5+ {[%clk 0:00:03]}  Bxg5 {[%clk 0:00:18]} 33. fxg5 {[%clk 0:00:04]}  Qd7 {[%clk 0:00:18]} 34. Be2 {[%clk 0:00:04]}  Kg8 {[%clk 0:00:17]} 35. Qxh4 {[%clk 0:00:03]}  f6 {[%clk 0:00:11]} 36. gxf6 {[%clk 0:00:03]}  exf6 {[%clk 0:00:12]} 37. Qg3 {[%clk 0:00:02]}  Rbd8 {[%clk 0:00:11]} 38. Bxd6 {[%clk 0:00:01]}  Qxd6 {[%clk 0:00:12]} 39. Qxd6 {[%clk 0:00:02]}  Rxd6 {[%clk 0:00:13]} 40. Rc7 {[%clk 0:00:02]}  Bc8 {[%clk 0:00:10]} 41. Rdc1 {[%clk 0:00:03]}  Bf5 {[%clk 0:00:09]} 42. Rxb7 {[%clk 0:00:03]}  Rfd8 {[%clk 0:00:08]} 43. Bc4 {[%clk 0:00:03]}  Kf8 {[%clk 0:00:07]} 44. Rb6 {[%clk 0:00:04]}  Ke7 {[%clk 0:00:07]} 45. Re1+ {[%clk 0:00:04]}  Kf8 {[%clk 0:00:07]} 46. g4 {[%clk 0:00:04]}  Bc2 {[%clk 0:00:07]} 47. Kg3 {[%clk 0:00:04]}  f5 {[%clk 0:00:06]} 48. Bxa6 {[%clk 0:00:04]}  Rxd5 {[%clk 0:00:05]} 49. Bc4 {[%clk 0:00:04]}  Rxa5 {[%clk 0:00:03]} 50. Rxg6 {[%clk 0:00:03]}  f4+ {[%clk 0:00:03]} 51. Kxf4 {[%clk 0:00:04]}  Bxg6 {[%clk 0:00:04]} 52. Re6 {[%clk 0:00:03]}  Bf7 {[%clk 0:00:03]} 53. Rf6 {[%clk 0:00:03]}  Rd7 {[%clk 0:00:03]} 54. g5 {[%clk 0:00:03]}  Kg7 {[%clk 0:00:04]} 55. Rc6 {[%clk 0:00:02]}  Bxc4 {[%clk 0:00:03]} 56. Rxc4 {[%clk 0:00:03]}  Rad5 {[%clk 0:00:03]} 57. h4 {[%clk 0:00:04]}  Rd4+ {[%clk 0:00:04]} 58. Rxd4 {[%clk 0:00:04]}  Rxd4+ {[%clk 0:00:05]} 59. Kf5 {[%clk 0:00:05]}  Rxh4 {[%clk 0:00:05]} 60. Ke5 {[%clk 0:00:04]}  Rb4 {[%clk 0:00:06]} 61. Kd6 {[%clk 0:00:05]}  Rxb3 {[%clk 0:00:06]} 62. Kc5 {[%clk 0:00:06]}  Rg3 {[%clk 0:00:07]} 0-1


[Site "https://www.chess.com"]